bitfinex-derivatives/quotes_SOLF0:USTF0_20251201
["timestamp","ask_amount","ask_price","bid_price","bid_amount"]
[1764554713755,3.45531286,128.41,128.38,0.05017577]
[1764554713970,3.4,128.39,128.38,0.05017577]
[1764554714257,5.34633544,128.39,128.38,0.05017577]
[1764554714452,5.34633544,128.39,128.32,25.18388059]
[1764554714658,1.94633544,128.38,128.32,25.18388059]
[1764554714850,3.4,128.43,128.25,134.33028059]
[1764554714851,3.4,128.43,128.33,27.06]
[1764554715052,11.35294997,128.42,128.33,34.0726]
[1764554715259,9.50939558,128.46,128.29,11.14388059]
[1764554715260,3.4,128.4,128.29,11.14388059]
[1764554715453,0.05167946,128.36,128.29,30.24388059]
[1764554715760,0.05167946,128.36,128.31,7.0137]
[1764554715950,0.05167946,128.36,128.29,30.24388059]
[1764554716560,0.05167946,128.36,128.32,7.0132]
[1764554717063,0.05167946,128.36,128.28,11.14388059]
[1764554717259,0.05656654,128.33,128.3,7.0145]
[1764554717557,0.05656654,128.33,128.29,27.06]
[1764554717756,0.05656654,128.33,128.31,7.0137]
[1764554718460,3.4,128.38,128.33,7.0124]
[1764554718663,3.4,128.41,128.33,7.0124]
[1764554718859,11.2952429,128.4,128.33,7.0124]
[1764554719158,7.007,128.44,128.31,11.14388059]
[1764554719350,11.296913,128.43,128.34,11.14388059]
[1764554719553,0.05417494,128.4,128.37,0.05502463]
[1764554722059,3.14,128.45,128.38,7.01]
[1764554722259,3.14,128.48,128.37,11.14388059]
[1764554722461,11.03946045,128.47,128.37,11.14388059]
[1764554722664,7.89946045,128.46,128.35,27.04]
[1764554722855,3.14,128.47,128.39,11.14388059]
[1764554723047,3.14,128.47,128.42,0.0526617]
[1764554723252,0.05689451,128.44,128.42,7.0604617]
[1764554725562,0.05689451,128.44,128.43,38.18388059]
[1764554725957,0.05689451,128.44,128.43,27.04]
[1764554726368,10.2431,128.52,128.44,7.0064]
[1764554727162,3.24,128.52,128.45,17.3859]
[1764554727358,0.05013752,128.5,128.47,0.05813031]
[1764554727660,3.29013752,128.5,128.47,0.05813031]
[1764554730866,0.05013752,128.5,128.47,11.2020109]
[1764554731867,0.05013752,128.5,128.47,18.2070109]
[1764554732569,3.29013752,128.5,128.47,11.2020109]
[1764554732778,3.29013752,128.5,128.47,0.05813031]
[1764554733067,0.05013752,128.5,128.47,0.05813031]
[1764554733670,0.05013752,128.5,128.47,7.06303031]
[1764554734966,0.05013752,128.5,128.47,0.05813031]
[1764554736766,0.05013752,128.5,128.48,7.0045]
[1764554736967,3.24,128.56,128.48,11.14388059]
[1764554737158,3.24,128.56,128.46,11.14388059]
[1764554737357,3.24,128.54,128.47,34.0249]
[1764554737662,3.24,128.54,128.46,11.14388059]
[1764554737857,3.24,128.53,128.47,27.04]
[1764554738062,3.24,128.53,128.49,0.05749515]
[1764554738063,0.0561754,128.51,128.49,0.05749515]
[1764554739564,3.24,128.59,128.49,11.20137574]
[1764554739770,3.24,128.59,128.49,11.14388059]
[1764554739971,3.24,128.58,128.49,11.14388059]
[1764554740573,0.05369346,128.55,128.52,0.05190154]
[1764554740965,3.29369346,128.55,128.52,0.05190154]
[1764554743766,0.05369346,128.55,128.52,0.05190154]
[1764554744078,3.29369346,128.55,128.52,0.05190154]
[1764554745965,3.29369346,128.55,128.48,7.0044]
[1764554746269,3.29369346,128.55,128.45,9.57]
[1764554746270,3.24,128.51,128.45,9.57]
[1764554746870,0.05825296,128.49,128.47,0.05839407]
[1764554747273,3.29825296,128.49,128.47,0.05839407]
[1764554748879,3.29825296,128.49,128.45,18.64]
[1764554748880,3.24,128.48,128.45,18.64]
[1764554749074,3.24,128.48,128.4,7.0088]
[1764554749279,3.24,128.48,128.38,34.22697141]
[1764554749883,0.05876412,128.44,128.42,0.0504398]
[1764554753390,0.05876412,128.44,128.42,7.0582398]
[1764554754400,9.39366587,128.5,128.42,0.0504398]
[1764554754600,3.39,128.5,128.41,11.14388059]
[1764554755302,0.05689405,128.47,128.44,0.05761575]
[1764554755897,3.44689405,128.47,128.44,0.05761575]
[1764554756601,10.45239405,128.47,128.44,0.05761575]
[1764554756788,3.39,128.46,128.44,0.05761575]
[1764554757891,3.44689405,128.47,128.44,0.05761575]
[1764554759489,3.39,128.53,128.44,11.20149634]
[1764554759690,9.39626227,128.52,128.46,11.14388059]
[1764554759891,3.39,128.52,128.46,11.14388059]
[1764554760190,3.39,128.52,128.45,21.36]
[1764554760391,3.39,128.5,128.42,11.14388059]
[1764554760591,3.39,128.46,128.45,0.05085426]
[1764554760792,3.44075902,128.47,128.44,0.05272708]
[1764554764197,0.05075902,128.47,128.44,0.05272708]
[1764554765406,3.44075902,128.47,128.44,0.05272708]
[1764554766201,112.98,128.46,128.39,20.94388059]
[1764554766406,3.39,128.44,128.39,20.94388059]
[1764554766901,112.98,128.45,128.39,20.94388059]
[1764554767106,3.39,128.47,128.42,11.14388059]
[1764554767308,0.05338839,128.46,128.43,0.05214921]
[1764554768399,3.44338839,128.46,128.43,0.05214921]
[1764554768804,0.05338839,128.46,128.43,0.05214921]
[1764554770007,0.05338839,128.46,128.45,11.14388059]
[1764554770207,6.02888562,128.5,128.45,11.14388059]
[1764554770506,3.39,128.52,128.45,11.14388059]
[1764554770707,6.0299158,128.51,128.45,11.14388059]
[1764554770898,3.39,128.52,128.45,11.14388059]
[1764554771101,0.05884172,128.5,128.47,0.05662769]
[1764554772508,0.05884172,128.5,128.48,7.10002949]
[1764554775008,0.05884172,128.5,128.47,0.05662769]
[1764554775009,3.44884172,128.5,128.47,0.05662769]
[1764554775506,3.39,128.57,128.48,36.96005898]
[1764554775713,3.39,128.57,128.53,7.10002949]
[1764554776204,3.39,128.57,128.5,7.10002949]
[1764554776412,3.39,128.54,128.52,0.05994068]
[1764554776612,3.44356517,128.54,128.52,0.05624415]
[1764554779512,9.58530088,128.53,128.52,0.05624415]
[1764554780009,3.24,128.52,128.49,10.17]
[1764554781013,3.24,128.52,128.49,10.22825481]
[1764554782711,3.24,128.52,128.49,6.82825481]
[1764554783017,3.24,128.5,128.49,6.82825481]
[1764554783315,3.24,128.5,128.49,0.05825481]
[1764554783511,3.29569122,128.51,128.49,0.05825481]
[1764554784211,3.24,128.5,128.49,0.05825481]
[1764554787217,3.24,128.5,128.44,1.71]
[1764554787218,3.36,128.49,128.43,9.66]
[1764554787406,3.36,128.47,128.43,9.66]
[1764554787606,3.36,128.45,128.36,7.10002949]
[1764554787811,6.19614885,128.44,128.36,7.10002949]
[1764554788012,7.0064,128.45,128.36,7.10002949]
[1764554788013,6.19171653,128.43,128.36,7.10002949]
[1764554788211,1.94606756,128.42,128.36,7.10002949]
[1764554788413,0.0554183,128.41,128.38,0.0507]
[1764554788716,8.13204575,128.4,128.32,3.35]
[1764554788921,8.13204575,128.39,128.34,3.35]
[1764554789217,7.0091,128.41,128.34,3.35]
[1764554789408,8.12807828,128.4,128.34,3.35]
[1764554789609,0.05701943,128.38,128.36,0.05970544]
[1764554790216,7.06721943,128.38,128.29,7.10002949]
[1764554790411,6.17484936,128.37,128.31,8.82]
[1764554790611,15.22240452,128.36,128.31,8.82]
[1764554790814,8.12259784,128.35,128.31,8.82]
[1764554791012,6.17484936,128.34,128.31,19.83]
[1764554791314,6.17484936,128.34,128.26,93.34]
[1764554791315,20.27672334,128.33,128.26,93.34]
[1764554791515,6.16379385,128.32,128.26,93.34]
[1764554791720,14.11292949,128.33,128.26,93.34]
[1764554791911,6.16400542,128.32,128.26,93.34]
[1764554792106,14.11292949,128.33,128.26,93.34]
[1764554792311,0.05546199,128.31,128.28,0.0597296]
[1764554793711,0.05546199,128.31,128.28,3.4097296]
[1764554793911,0.05546199,128.31,128.28,0.0597296]
[1764554794912,0.05546199,128.31,128.24,7.78]
[1764554795311,0.05546199,128.31,128.25,7.74]
[1764554796112,7.016,128.28,128.25,7.74]
[1764554796321,0.04945869,128.28,128.25,7.74]
[1764554796727,7.06565869,128.28,128.25,7.74]
[1764554797024,0.04945869,128.28,128.25,7.74]
[1764554797222,6.10583537,128.27,128.24,7.78]
[1764554797422,0.04945869,128.28,128.17,3.35]
[1764554797727,0.05618408,128.24,128.17,3.35]
[1764554799314,0.05618408,128.24,128.18,3.35]
[1764554802824,7.0186,128.23,128.16,7.10002949]
[1764554803016,0.05879004,128.21,128.17,3.35]
[1764554804331,7.07829004,128.21,128.17,3.35]
[1764554804530,0.05879004,128.21,128.17,3.35]
[1764554804832,0.05879004,128.21,128.2,3.35]
[1764554805517,7.0183,128.24,128.2,3.35]
[1764554805731,7.0169,128.26,128.23,3.35]
[1764554806834,7.07481867,128.26,128.23,3.40530715]
[1764554808828,0.05791867,128.26,128.23,3.40530715]
[1764554809229,0.05791867,128.26,128.23,0.05530715]
[1764554809736,0.05791867,128.26,128.23,3.38530715]
[1764554810637,0.05791867,128.26,128.25,3.33]
[1764554811433,1.94856345,128.33,128.25,3.33]
[1764554811634,6.04121513,128.32,128.25,3.33]
[1764554811837,1.94856345,128.34,128.25,3.33]
[1764554812033,23.41,128.32,128.25,3.33]
[1764554812438,0.0600605,128.3,128.27,0.05967439]
[1764554813336,7.0748605,128.3,128.27,0.05967439]
[1764554813835,0.0600605,128.3,128.27,0.05967439]
[1764554814042,7.0154,128.29,128.27,0.05967439]
[1764554814626,0.0600605,128.3,128.27,0.05967439]
[1764554814829,0.0600605,128.3,128.27,3.38967439]
[1764554816435,0.0600605,128.3,128.27,10.48970388]
[1764554816640,0.0600605,128.3,128.28,3.33]
[1764554816841,0.0600605,128.3,128.27,0.05967439]
[1764554817639,7.0154,128.29,128.27,0.05967439]
[1764554817841,30.4254,128.29,128.27,0.05967439]
[1764554821239,6.06548632,128.28,128.27,0.05967439]
[1764554822948,29.47548632,128.28,128.22,3.33]
[1764554823147,6.06548632,128.27,128.22,3.33]
[1764554823339,6.06548632,128.26,128.22,3.33]
[1764554823539,23.41,128.28,128.22,3.33]
[1764554823740,6.07915773,128.27,128.22,3.33]
[1764554824039,6.12986332,128.26,128.23,3.38790201]
[1764554824342,6.0859496,128.25,128.23,3.38790201]
[1764554824540,7.06760559,128.26,128.23,3.38790201]
[1764554824736,6.08551722,128.25,128.23,3.38790201]
[1764554824937,7.06760559,128.26,128.23,3.38790201]
[1764554825134,6.08468892,128.25,128.23,3.38790201]
[1764554825436,7.06760559,128.26,128.23,3.38790201]
[1764554825637,6.09161222,128.25,128.23,3.38790201]
[1764554825834,0.05070559,128.26,128.23,0.05790201]
[1764554826035,6.09122613,128.25,128.23,0.05790201]
[1764554826238,6.09122613,128.24,128.23,0.05790201]
[1764554827845,6.09122613,128.24,128.18,7.10002949]
[1764554828047,7.11181896,128.21,128.12,3.33]
[1764554828246,7.11181896,128.18,128.14,3.33]
[1764554828551,7.11181896,128.2,128.17,3.33]
[1764554828749,6.11526826,128.19,128.17,3.33]
[1764554828952,6.11526826,128.18,128.17,3.33]
[1764554829748,0.05473069,128.19,128.17,3.33]
[1764554830150,16.58482627,128.19,128.15,3.33]
[1764554830345,7.13964165,128.17,128.15,3.33]
[1764554830748,0.33964165,128.17,128.15,3.33]
[1764554831050,0.05898499,128.18,128.16,3.33]
[1764554832249,0.05898499,128.18,128.17,3.33]
[1764554836062,9.50939558,128.21,128.18,3.33]
[1764554836350,9.50939558,128.22,128.18,3.33]
[1764554836553,9.50939558,128.21,128.18,3.33]
[1764554837049,9.56362788,128.21,128.18,3.38030448]
[1764554837254,0.0542323,128.21,128.18,3.38030448]
[1764554838753,9.56362788,128.21,128.18,0.05030448]
[1764554838960,9.50939558,128.19,128.18,0.05030448]
[1764554839157,9.50939558,128.2,128.18,0.05030448]
[1764554839363,16.52969558,128.2,128.18,0.05030448]
[1764554839664,14.27625917,128.2,128.12,3.33]
[1764554839972,9.59984862,128.18,128.12,3.33]
[1764554840164,9.59984862,128.19,128.12,3.33]
[1764554840566,0.05312529,128.17,128.12,3.33]
[1764554841766,5.89132579,128.16,128.12,3.33]
[1764554841967,5.89132579,128.15,128.12,3.33]
[1764554842165,0.05312529,128.17,128.12,3.33]
[1764554842367,5.88929633,128.16,128.12,3.33]
[1764554842566,5.88929633,128.15,128.12,3.33]
[1764554842768,7.07502529,128.17,128.12,3.33]
[1764554842969,5.88970275,128.16,128.12,3.33]
[1764554843268,7.07502529,128.17,128.12,3.33]
[1764554843562,5.89115623,128.16,128.12,3.33]
[1764554843761,7.07502529,128.17,128.12,3.33]
[1764554844071,12.9135535,128.16,128.09,10.206]
[1764554844272,0.05947843,128.14,128.06,96.83]
[1764554844457,0.05064596,128.11,128.06,96.83]
[1764554844662,5.88504837,128.1,128.06,96.83]
[1764554844857,5.88504837,128.09,128.06,96.83]
[1764554845062,5.88504837,128.08,128.06,96.83]
[1764554845262,0.05657086,128.08,128.06,96.83]
[1764554845472,0.05657086,128.08,128.03,10.319]
[1764554845661,0.05657086,128.08,128.04,3.29]
[1764554847371,0.05657086,128.08,128.04,10.3183]
[1764554847667,0.05657086,128.08,128.05,3.29]
[1764554850264,1.61657086,128.08,127.98,3.29]
[1764554850481,0.05492344,128.04,127.98,3.29]
[1764554850781,7.0302,128.02,127.98,3.29]
[1764554850966,0.04985139,128.01,127.98,3.29]
[1764554853168,7.0269,128.08,128.0,7.0306]
[1764554853367,5.82108925,128.11,128.01,3.29]
[1764554853568,5.82108925,128.12,128.01,3.29]
[1764554853868,7.0263,128.09,128.01,3.29]
[1764554854370,0.05096472,128.06,128.04,0.05930694]
[1764554854569,0.04973999,128.06,128.04,3.34272627]
[1764554855668,0.04973999,128.06,128.04,0.05272627]
[1764554856070,7.07773999,128.06,128.04,0.05272627]
[1764554857675,0.04973999,128.06,128.04,3.34272627]
[1764554861680,0.04973999,128.06,128.04,0.05272627]
[1764554862480,7.07773999,128.06,128.04,0.05272627]
[1764554862675,0.04973999,128.06,127.98,3.29]
[1764554862874,23.41,128.08,127.98,3.29]
[1764554863681,0.05428023,128.04,127.98,3.29]
[1764554864382,0.05428023,128.04,127.98,10.3219]
[1764554864570,0.05428023,128.04,127.97,11.18199046]
[1764554864571,0.05428023,128.04,127.99,3.29]
[1764554867080,7.08338023,128.04,127.99,3.29]
[1764554867775,0.05428023,128.04,127.99,3.29]
[1764554869486,7.0302,128.02,127.99,3.29]
[1764554871382,7.08348023,128.04,127.99,3.29]
[1764554873380,7.08348023,128.04,128.01,3.12]
[1764554873588,7.08830899,128.04,128.01,3.12]
[1764554874190,5.84264569,128.07,128.03,11.18199046]
[1764554874390,3.1,128.13,128.07,3.12]
[1764554874590,3.1,128.13,128.06,11.18199046]
[1764554874887,10.1248,128.12,128.06,11.18199046]
[1764554875289,0.05622452,128.1,128.08,0.05268183]
[1764554875486,10.18192452,128.1,128.08,0.05268183]
[1764554876693,3.1,128.09,128.08,0.05268183]
[1764554881290,7.08192452,128.1,128.08,0.05268183]
[1764554881491,3.1,128.09,128.08,0.05268183]
[1764554883787,3.1,128.07,128.04,14.30199046]
[1764554883991,3.1,128.07,128.02,3.12]
[1764554884900,0.05304698,128.06,128.02,3.12]
[1764554886494,113.03304698,128.06,128.02,3.12]
[1764554887700,116.13304698,128.06,128.02,3.12]
[1764554888199,113.03304698,128.06,128.02,3.12]
[1764554889697,113.03304698,128.06,128.05,3.12]
[1764554889896,112.98,128.06,128.05,3.12]
[1764554895310,0.05128061,128.07,128.05,3.12]
[1764554900606,0.05128061,128.07,128.05,10.26871183]
[1764554900911,0.05128061,128.07,128.06,3.17]
[1764554902311,0.05128061,128.07,128.06,5.74378543]
[1764554902911,116.18,128.11,128.07,3.17]
[1764554903119,116.18,128.11,128.09,2.57378543]
[1764554903822,116.2329166,128.11,128.09,2.6288104]
[1764554904321,113.0329166,128.11,128.09,5.9888104]
[1764554904622,113.0329166,128.11,128.1,3.36]
[1764554905116,10.2731,128.15,128.1,3.36]
[1764554905318,3.25,128.17,128.14,2.57378543]
[1764554905517,3.25,128.19,128.14,7.0229]
[1764554905712,3.25,128.19,128.17,2.57378543]
[1764554906115,8.96968827,128.21,128.17,2.57378543]
[1764554906313,3.25,128.2,128.18,0.05857242]
[1764554906619,3.30479053,128.2,128.18,0.05857242]
[1764554907318,0.05479053,128.2,128.18,0.05857242]
[1764554907616,3.25,128.26,128.18,0.05857242]
[1764554907918,3.25,128.26,128.17,7.13683564]
[1764554908307,3.25,128.26,128.18,7.021]
[1764554908505,3.30734988,128.23,128.21,0.05706435]
[1764554910217,0.05734988,128.23,128.21,0.05706435]
[1764554915618,3.25,128.2,128.12,7.13683564]
[1764554916317,10.2715,128.18,128.12,23.46938541]
[1764554916518,10.2715,128.18,128.09,126.71683564]
[1764554916715,0.05755474,128.16,128.14,0.05299068]
[1764554917021,3.30755474,128.16,128.14,0.05299068]
[1764554917218,0.05755474,128.16,128.14,0.05299068]
[1764554918314,3.25,128.22,128.16,7.022]
[1764554919220,0.05725778,128.2,128.18,0.0547333]
[1764554920118,3.30725778,128.2,128.18,0.0547333]
[1764554920424,3.30725778,128.2,128.13,7.13683564]
[1764554920620,3.25,128.2,128.13,7.13683564]
[1764554920823,3.25,128.18,128.11,34.0245]
[1764554921022,3.25,128.18,128.11,30.06496694]
[1764554921427,0.05270728,128.16,128.13,0.04967521]
[1764554921622,3.30270728,128.16,128.13,0.04967521]
[1764554922126,0.05270728,128.16,128.13,0.04967521]
[1764554923407,3.30270728,128.16,128.13,0.04967521]
[1764554925418,3.25,128.15,128.13,0.04967521]
[1764554927927,3.30270728,128.16,128.13,0.04967521]
[1764554928321,0.05270728,128.16,128.13,0.04967521]
[1764554936533,3.32270728,128.16,128.13,0.04967521]
[1764554939239,0.05270728,128.16,128.14,7.13683564]
[1764554940531,3.32270728,128.16,128.14,7.13683564]
[1764554942339,3.32270728,128.16,128.14,2.57104775]
[1764554943336,3.27,128.15,128.14,2.57104775]
[1764554945432,0.05270728,128.16,128.14,2.57104775]
[1764554945635,3.27,128.18,128.14,2.57104775]
[1764554945837,3.27,128.18,128.17,2.57104775]
[1764554949241,9.23666511,128.18,128.17,2.57104775]
[1764554950247,3.27,128.18,128.17,2.57104775]
[1764554950744,3.32037656,128.19,128.17,2.57104775]
[1764554952947,7.24575814,128.26,128.17,2.57104775]
[1764554953243,3.27,128.29,128.25,2.57104775]
[1764554953446,3.27,128.29,128.27,2.57104775]
[1764554954042,3.32334047,128.29,128.27,2.62653924]
[1764554954240,3.32334047,128.29,128.28,2.57104775]
[1764554954541,3.32334047,128.29,128.27,0.05549149]
[1764554955944,9.16897104,128.28,128.27,0.05549149]
[1764554956143,3.27,128.27,128.11,142.65342282]
[1764554956451,3.27,128.27,128.21,11.16934352]
[1764554956644,3.27,128.27,128.21,34.26432581]
[1764554957153,0.05803228,128.25,128.23,0.05586109]
[1764554960847,3.18803228,128.25,128.23,0.05586109]
[1764554961044,3.18803228,128.25,128.18,7.021]
[1764554961252,3.18803228,128.25,128.19,11.16934352]
[1764554961442,3.18803228,128.25,128.18,7.021]
[1764554961646,3.13,128.24,128.16,18.19134352]
[1764554961952,3.19001863,128.21,128.19,0.0534002]
[1764554967448,0.06001863,128.21,128.19,0.0534002]
[1764554967657,0.06001863,128.21,128.19,11.22274372]
[1764554970154,0.06001863,128.21,128.2,7.02]
[1764554970751,0.06001863,128.21,128.19,11.22274372]
[1764554972159,0.06001863,128.21,128.19,18.24314372]
[1764554974462,3.17,128.25,128.2,4.01129499]
[1764554974662,3.17,128.25,128.22,4.01129499]
[1764554975463,3.22095003,128.25,128.22,4.06442773]
[1764554976066,3.22095003,128.25,128.22,0.05313274]
[1764554976371,3.22095003,128.25,128.18,4.01129499]
[1764554976372,3.17,128.21,128.18,4.01129499]
[1764554977365,3.22532289,128.21,128.18,4.06662956]
[1764554977564,3.22532289,128.21,128.18,0.05533457]
[1764554977771,3.22532289,128.21,128.18,4.06662956]
[1764554980769,3.22532289,128.21,128.18,0.05533457]
[1764554984468,3.17,128.19,128.18,0.05533457]
[1764554988673,3.17,128.18,128.14,4.01129499]
[1764554989675,3.36,128.16,128.15,0.05708659]
[1764554989983,3.36,128.16,128.1,11.03639499]
[1764554990180,3.36,128.18,128.12,4.01129499]
[1764554990386,3.36,128.16,128.12,4.01129499]
[1764554990778,3.36,128.16,128.1,4.01129499]
[1764554990978,3.41556825,128.14,128.1,4.01129499]
[1764554991375,10.43916825,128.14,128.1,4.01129499]
[1764554992885,3.41556825,128.14,128.1,4.01129499]
[1764554993182,3.41556825,128.14,128.13,4.01129499]
[1764554993988,0.05556825,128.14,128.13,4.01129499]
[1764554998591,0.05556825,128.14,128.12,4.01129499]
[1764554999592,3.41556825,128.14,128.12,4.01129499]
[1764554999789,3.41556825,128.14,128.11,4.01129499]
[1764555000493,11.72137823,128.2,128.13,4.01129499]
[1764555000494,3.36,128.19,128.13,4.01129499]
[1764555000693,3.36,128.17,128.13,4.01129499]
[1764555000892,3.36,128.15,128.13,4.01129499]
[1764555001092,3.36,128.15,128.11,4.01129499]
[1764555001292,3.36,128.15,128.09,16.6]
[1764555001293,3.36,128.15,128.09,4.01129499]
[1764555001485,3.36,128.12,128.09,4.01129499]
[1764555001689,3.36,128.12,128.11,0.05696341]
[1764555001884,3.36,128.12,128.07,4.01129499]
[1764555003004,3.36,128.1,128.07,4.01129499]
[1764555004701,3.36,128.09,128.03,7.0288]
[1764555004897,3.36,128.06,128.01,4.01129499]
[1764555005503,3.36,128.05,128.0,93.58]
[1764555005704,3.36,128.03,128.0,93.58]
[1764555006107,3.36,128.03,127.99,4.01129499]
[1764555006415,3.36,128.03,127.94,12.57618594]
[1764555006606,0.05453701,128.0,127.94,23.51618594]
[1764555006796,0.05453701,128.0,127.94,12.57618594]
[1764555007000,0.05453701,128.0,127.94,19.61018594]
[1764555008314,0.05453701,128.0,127.97,11.21657195]
[1764555008500,3.36,128.04,127.97,11.21657195]
[1764555008700,10.3872,128.07,127.98,7.032]
[1764555008903,10.3872,128.07,128.0,11.21657195]
[1764555009111,3.36,128.06,128.0,11.21657195]
[1764555009612,3.4141594,128.04,128.02,0.05608723]
[1764555011605,10.3893,128.03,128.02,0.05608723]
[1764555012802,3.36,128.03,128.02,0.05608723]
[1764555013007,0.0541594,128.04,128.02,0.05608723]
[1764555014415,3.4141594,128.04,128.02,0.05608723]
[1764555015608,10.3897,128.03,127.97,11.21657195]
[1764555016721,0.05798816,128.01,127.97,11.21657195]
[1764555018527,0.05798816,128.01,127.98,7.15522687]
[1764555018912,0.05798816,128.01,127.96,7.0329]
[1764555019208,3.36,128.06,127.98,7.15522687]
[1764555019412,3.36,128.06,127.95,11.72]
[1764555019413,3.36,128.06,128.01,7.15522687]
[1764555019919,3.36,128.05,128.01,7.15522687]
[1764555020214,7.19408571,128.1,128.01,7.15522687]
[1764555020215,3.36,128.08,128.01,7.15522687]
[1764555020519,0.0508693,128.04,128.02,7.08212413]
[1764555020720,3.36,128.08,128.02,7.08212413]
[1764555020908,9.14557924,128.12,128.04,7.15522687]
[1764555021110,9.39756895,128.11,128.04,7.15522687]
[1764555021305,16.42336895,128.1,128.04,14.18392687]
[1764555021514,10.3858,128.1,128.04,14.18392687]
[1764555021916,0.04931301,128.08,128.06,0.05045283]
[1764555023811,16.1444,128.13,128.07,7.15522687]
[1764555024010,3.36,128.12,128.07,7.15522687]
[1764555025013,0.05944552,128.11,128.08,0.0499568]
[1764555025822,3.41944552,128.11,128.08,0.0499568]
[1764555026223,0.05944552,128.11,128.08,0.0499568]
[1764555026919,3.41944552,128.11,128.08,0.0499568]
[1764555027819,0.05944552,128.11,128.08,0.0499568]
[1764555030126,0.05944552,128.11,128.08,7.0762568]
[1764555030320,0.05944552,128.11,128.1,7.15522687]
[1764555030526,3.23,128.16,128.1,7.15522687]
[1764555030826,9.29290772,128.15,128.1,7.15522687]
[1764555031119,3.23,128.15,128.1,7.15522687]
[1764555031623,3.28495735,128.14,128.11,0.05898182]
[1764555032517,0.05495735,128.14,128.11,0.05898182]
[1764555033914,3.28495735,128.14,128.11,0.05898182]
[1764555035025,0.05495735,128.14,128.11,0.05898182]
[1764555035224,0.05495735,128.14,128.12,7.15522687]
[1764555035424,0.05495735,128.14,128.12,14.17922687]
[1764555035620,3.23,128.18,128.12,7.15522687]
[1764555036020,3.23,128.18,128.14,7.0231]
[1764555036527,0.05726254,128.17,128.15,0.05068303]
[1764555039029,3.23,128.24,128.15,7.2059099]
[1764555039226,9.29291381,128.23,128.18,7.15522687]
[1764555039426,3.23,128.23,128.18,7.15522687]
[1764555039628,6.05915047,128.25,128.18,18.99522687]
[1764555039828,6.05915047,128.25,128.2,0.06000317]
[1764555039829,0.05229854,128.23,128.2,0.06000317]
[1764555040429,3.28229854,128.23,128.2,0.06000317]
[1764555045031,3.23,128.21,128.13,7.0236]
[1764555046031,3.28612986,128.18,128.16,0.05924862]
[1764555058231,0.05612986,128.18,128.17,2.57034355]
[1764555058436,3.08,128.24,128.17,2.57034355]
[1764555058645,9.16808328,128.23,128.22,2.57034355]
[1764555060343,9.17129662,128.23,128.21,0.05907343]
[1764555060540,3.08,128.23,128.21,0.05907343]
[1764555060743,10.0986,128.23,128.21,0.05907343]
[1764555060948,3.08,128.22,128.21,0.05907343]
[1764555061735,9.17174588,128.22,128.21,0.05907343]
[1764555062340,3.08,128.2,128.15,7.1321323]
[1764555063548,3.13525062,128.19,128.16,0.0537404]
[1764555064244,0.05525062,128.19,128.16,0.0537404]
[1764555064839,3.13525062,128.19,128.16,0.0537404]
[1764555065038,6.10567089,128.18,128.16,0.0537404]
[1764555065240,3.08,128.18,128.16,0.0537404]
[1764555066251,3.08,128.16,128.11,7.0248]
[1764555067145,3.08,128.14,128.12,7.68]
[1764555067445,3.08,128.14,128.12,7.73905778]
[1764555068850,3.13351968,128.15,128.12,7.73905778]
[1764555069152,6.11275547,128.14,128.12,7.73905778]
[1764555069350,3.13351968,128.15,128.12,7.73905778]
[1764555069650,6.11555281,128.14,128.12,7.73905778]
[1764555069844,3.13351968,128.15,128.12,7.73905778]
[1764555070045,6.11555458,128.14,128.12,7.73905778]
[1764555070249,3.13351968,128.15,128.12,7.73905778]
[1764555070442,3.08,128.13,128.12,7.73905778]
[1764555072045,3.08,128.14,128.12,7.73905778]
[1764555072246,0.05351968,128.15,128.12,7.73905778]
[1764555072247,3.13351968,128.15,128.12,7.73905778]
[1764555072447,0.05351968,128.15,128.12,7.73905778]
[1764555072643,3.13351968,128.15,128.12,7.73905778]
[1764555078153,0.05351968,128.15,128.12,7.73905778]
[1764555078351,7.21777434,128.21,128.13,7.1321323]
[1764555078547,3.08,128.23,128.16,7.1321323]
[1764555078747,6.18245488,128.22,128.16,7.1321323]
[1764555078951,6.18245488,128.21,128.16,7.1321323]
[1764555079152,3.08,128.23,128.16,7.1321323]